[Event "Titled Tuesday Blitz June 13 Late 2023"]
[White "dorpato"]
[Black "Ouellet, Maili-Jade"]
[BlackFideId "2620472"]
[WhiteElo "2059"]
[BlackElo "2077"]
[Result "0-1"]
[Round "5"]
[TimeControl "180+2"]
[Date "2023.06.13"]
[WhiteClock "0:00:09"]
[BlackClock "0:00:12"]
[Board "171"]

1. e4 {[%clk 0:02:12]}  e5 {[%clk 0:02:58]} 2. d4 {[%clk 0:02:10]}  exd4 {[%clk 0:02:57]} 3. Nf3 {[%clk 0:02:09]}  Nc6 {[%clk 0:02:56]} 4. c3 {[%clk 0:02:06]}  dxc3 {[%clk 0:02:52]} 5. Nxc3 {[%clk 0:02:07]}  Bb4 {[%clk 0:02:47]} 6. Bc4 {[%clk 0:02:07]}  Nge7 {[%clk 0:02:42]} 7. Qb3 {[%clk 0:01:55]}  O-O {[%clk 0:02:33]} 8. Ng5 {[%clk 0:01:44]}  Bxc3+ {[%clk 0:02:20]} 9. Qxc3 {[%clk 0:01:40]}  Ng6 {[%clk 0:02:16]} 10. O-O {[%clk 0:01:38]}  d6 {[%clk 0:02:12]} 11. f4 {[%clk 0:01:32]}  h6 {[%clk 0:01:59]} 12. Nxf7 {[%clk 0:01:22]}  Rxf7 {[%clk 0:01:57]} 13. Bxf7+ {[%clk 0:01:14]}  Kxf7 {[%clk 0:01:57]} 14. e5 {[%clk 0:01:10]}  dxe5 {[%clk 0:01:30]} 15. fxe5+ {[%clk 0:01:09]}  Kg8 {[%clk 0:01:30]} 16. Bf4 {[%clk 0:01:01]}  Be6 {[%clk 0:01:24]} 17. Rad1 {[%clk 0:00:57]}  Qe7 {[%clk 0:01:22]} 18. Qc2 {[%clk 0:00:52]}  Nxf4 {[%clk 0:01:10]} 19. Rxf4 {[%clk 0:00:50]}  Qg5 {[%clk 0:01:08]} 20. Qf2 {[%clk 0:00:41]}  Nxe5 {[%clk 0:01:05]} 21. Rf1 {[%clk 0:00:40]}  Bd5 {[%clk 0:00:48]} 22. Rf8+ {[%clk 0:00:31]}  Rxf8 {[%clk 0:00:46]} 23. Qxf8+ {[%clk 0:00:32]}  Kh7 {[%clk 0:00:45]} 24. Qf5+ {[%clk 0:00:32]}  Ng6 {[%clk 0:00:35]} 25. Qxg5 {[%clk 0:00:27]}  hxg5 {[%clk 0:00:34]} 26. Rf5 {[%clk 0:00:28]}  Bxa2 {[%clk 0:00:34]} 27. Rxg5 {[%clk 0:00:28]}  b6 {[%clk 0:00:28]} 28. Rf5 {[%clk 0:00:26]}  a5 {[%clk 0:00:25]} 29. Rf3 {[%clk 0:00:25]}  Ne5 {[%clk 0:00:22]} 30. Rc3 {[%clk 0:00:24]}  c5 {[%clk 0:00:20]} 31. Re3 {[%clk 0:00:23]}  Nc4 {[%clk 0:00:20]} 32. Re2 {[%clk 0:00:21]}  Bb3 {[%clk 0:00:20]} 33. Kf2 {[%clk 0:00:20]}  Kg6 {[%clk 0:00:19]} 34. Kf3 {[%clk 0:00:21]}  Kf6 {[%clk 0:00:18]} 35. g4 {[%clk 0:00:20]}  a4 {[%clk 0:00:18]} 36. h4 {[%clk 0:00:19]}  b5 {[%clk 0:00:17]} 37. g5+ {[%clk 0:00:19]}  Kf7 {[%clk 0:00:18]} 38. Kf4 {[%clk 0:00:19]}  b4 {[%clk 0:00:17]} 39. h5 {[%clk 0:00:18]}  a3 {[%clk 0:00:16]} 40. g6+ {[%clk 0:00:18]}  Kf6 {[%clk 0:00:13]} 41. bxa3 {[%clk 0:00:17]}  bxa3 {[%clk 0:00:13]} 42. h6 {[%clk 0:00:13]}  gxh6 {[%clk 0:00:11]} 43. Rg2 {[%clk 0:00:12]}  Kg7 {[%clk 0:00:11]} 44. Kf5 {[%clk 0:00:09]}  Ne3+ {[%clk 0:00:12]} 0-1


[Site "https://www.chess.com"]

[Event "Titled Tuesday Blitz June 13 Late 2023"]
[White "Vazquez, Guillermo"]
[Black "Nihal Sarin"]
[WhiteFideId "3702308"]
[BlackFideId "25092340"]
[WhiteElo "2543"]
[BlackElo "2689"]
[Result "0-1"]
[Round "6"]
[TimeControl "180+2"]
[Date "2023.06.13"]
[WhiteClock "0:00:00"]
[BlackClock "0:00:05"]
[Board "2"]

1. b3 {[%clk 0:03:00]}  d5 {[%clk 0:02:59]} 2. Bb2 {[%clk 0:03:01]}  Bf5 {[%clk 0:02:59]} 3. d3 {[%clk 0:03:01]}  e6 {[%clk 0:02:59]} 4. Nd2 {[%clk 0:03:01]}  Nf6 {[%clk 0:03:00]} 5. g3 {[%clk 0:03:00]}  h6 {[%clk 0:02:41]} 6. Bg2 {[%clk 0:03:00]}  Bh7 {[%clk 0:02:41]} 7. Nh3 {[%clk 0:02:59]}  a5 {[%clk 0:02:42]} 8. a3 {[%clk 0:02:58]}  Nbd7 {[%clk 0:02:42]} 9. e4 {[%clk 0:02:54]}  c6 {[%clk 0:02:41]} 10. O-O {[%clk 0:02:53]}  Bc5 {[%clk 0:02:41]} 11. e5 {[%clk 0:02:47]}  Ng8 {[%clk 0:02:40]} 12. Qg4 {[%clk 0:02:35]}  g5 {[%clk 0:02:35]} 13. Qe2 {[%clk 0:02:12]}  Ne7 {[%clk 0:02:19]} 14. Kh1 {[%clk 0:02:06]}  Rg8 {[%clk 0:02:09]} 15. d4 {[%clk 0:01:43]}  Bb6 {[%clk 0:02:09]} 16. c4 {[%clk 0:01:44]}  Nf5 {[%clk 0:02:00]} 17. c5 {[%clk 0:01:27]}  Bc7 {[%clk 0:01:59]} 18. b4 {[%clk 0:01:27]}  b5 {[%clk 0:01:31]} 19. a4 {[%clk 0:01:07]}  Rb8 {[%clk 0:01:31]} 20. bxa5 {[%clk 0:00:54]}  bxa4 {[%clk 0:01:24]} 21. Nb1 {[%clk 0:00:43]}  Bxa5 {[%clk 0:01:16]} 22. Rxa4 {[%clk 0:00:43]}  Rb4 {[%clk 0:00:53]} 23. Rxb4 {[%clk 0:00:40]}  Bxb4 {[%clk 0:00:54]} 24. Nd2 {[%clk 0:00:34]}  Qb8 {[%clk 0:00:43]} 25. Ra1 {[%clk 0:00:29]}  Bxc5 {[%clk 0:00:22]} 26. Nf3 {[%clk 0:00:22]}  Be7 {[%clk 0:00:09]} 27. g4 {[%clk 0:00:22]}  Ng7 {[%clk 0:00:09]} 28. Bc3 {[%clk 0:00:18]}  Kf8 {[%clk 0:00:05]} 29. Nd2 {[%clk 0:00:16]}  Ne8 {[%clk 0:00:05]} 30. f4 {[%clk 0:00:16]}  Bb4 {[%clk 0:00:04]} 31. Qe3 {[%clk 0:00:12]}  gxf4 {[%clk 0:00:05]} 32. Nxf4 {[%clk 0:00:12]}  Rxg4 {[%clk 0:00:05]} 33. Rf1 {[%clk 0:00:12]}  Bxc3 {[%clk 0:00:04]} 34. Qxc3 {[%clk 0:00:03]}  Ng7 {[%clk 0:00:05]} 35. Qf3 {[%clk 0:00:03]}  Bf5 {[%clk 0:00:04]} 36. h3 {[%clk 0:00:02]}  Rg5 {[%clk 0:00:05]} 37. Qe3 {[%clk 0:00:02]}  Qb4 {[%clk 0:00:04]} 38. Nf3 {[%clk 0:00:03]}  Rg3 {[%clk 0:00:05]} 39. Kh2 {[%clk 0:00:03]}  Rxf3 {[%clk 0:00:04]} 40. Rxf3 {[%clk 0:00:04]}  c5 {[%clk 0:00:05]} 41. Nd3 {[%clk 0:00:02]}  Qxd4 {[%clk 0:00:04]} 42. Qxd4 {[%clk 0:00:01]}  cxd4 {[%clk 0:00:05]} 43. Nf4 {[%clk 0:00:01]}  Nxe5 {[%clk 0:00:05]} 44. Ra3 {[%clk 0:00:02]}  Be4 {[%clk 0:00:05]} 45. Bf1 {[%clk 0:00:02]}  Nf5 {[%clk 0:00:05]} 46. Be2 {[%clk 0:00:02]}  Ne3 {[%clk 0:00:05]} 47. Kg3 {[%clk 0:00:02]}  Kg7 {[%clk 0:00:05]} 48. Kf2 {[%clk 0:00:03]}  N3c4 {[%clk 0:00:05]} 49. Ra7 {[%clk 0:00:03]}  d3 {[%clk 0:00:04]} 50. Nxe6+ {[%clk 0:00:03]}  Kf6 {[%clk 0:00:04]} 51. Nd4 {[%clk 0:00:01]}  dxe2 {[%clk 0:00:05]} 52. Kxe2 {[%clk 0:00:02]}  Nd6 {[%clk 0:00:04]} 53. Ra6 {[%clk 0:00:00]}  Bd3+ {[%clk 0:00:05]} 0-1


[Site "https://www.chess.com"]

[Event "Titled Tuesday Blitz June 13 Late 2023"]
[White "Duda, Jan-Krzysztof"]
[Black "Eljanov, Pavel"]
[WhiteFideId "1170546"]
[BlackFideId "14102951"]
[WhiteElo "2783"]
[BlackElo "2598"]
[Result "0-1"]
[Round "6"]
[TimeControl "180+2"]
[Date "2023.06.13"]
[WhiteClock "0:00:04"]
[BlackClock "0:00:06"]
[Board "3"]

1. d4 {[%clk 0:03:00]}  d5 {[%clk 0:02:59]} 2. Bg5 {[%clk 0:03:00]}  h6 {[%clk 0:02:58]} 3. Bh4 {[%clk 0:03:00]}  Nf6 {[%clk 0:02:58]} 4. e3 {[%clk 0:02:58]}  c5 {[%clk 0:02:54]} 5. c3 {[%clk 0:02:52]}  Qb6 {[%clk 0:02:52]} 6. Qc1 {[%clk 0:02:52]}  Nc6 {[%clk 0:02:51]} 7. Nd2 {[%clk 0:02:51]}  Bf5 {[%clk 0:02:47]} 8. Ngf3 {[%clk 0:02:49]}  e6 {[%clk 0:02:46]} 9. Bxf6 {[%clk 0:02:42]}  gxf6 {[%clk 0:02:46]} 10. Be2 {[%clk 0:02:43]}  Rc8 {[%clk 0:02:43]} 11. O-O {[%clk 0:02:42]}  Rg8 {[%clk 0:02:31]} 12. g3 {[%clk 0:02:39]}  e5 {[%clk 0:02:22]} 13. Re1 {[%clk 0:02:36]}  Be7 {[%clk 0:02:01]} 14. Nh4 {[%clk 0:02:25]}  Be6 {[%clk 0:01:59]} 15. dxc5 {[%clk 0:02:09]}  Qxc5 {[%clk 0:01:56]} 16. Qb1 {[%clk 0:02:04]}  e4 {[%clk 0:01:48]} 17. Nb3 {[%clk 0:02:03]}  Qd6 {[%clk 0:01:41]} 18. Nd4 {[%clk 0:02:02]}  Nxd4 {[%clk 0:01:29]} 19. cxd4 {[%clk 0:02:03]}  f5 {[%clk 0:01:06]} 20. Ng2 {[%clk 0:02:03]}  Qb6 {[%clk 0:01:05]} 21. Nf4 {[%clk 0:01:47]}  Bd6 {[%clk 0:01:05]} 22. Nh5 {[%clk 0:01:47]}  Ke7 {[%clk 0:01:04]} 23. Rd1 {[%clk 0:01:22]}  Rc7 {[%clk 0:01:02]} 24. a3 {[%clk 0:01:22]}  a5 {[%clk 0:00:58]} 25. Rd2 {[%clk 0:01:22]}  Rgc8 {[%clk 0:00:53]} 26. Qd1 {[%clk 0:01:21]}  Bd7 {[%clk 0:00:46]} 27. Rb1 {[%clk 0:01:03]}  a4 {[%clk 0:00:42]} 28. Kg2 {[%clk 0:00:28]}  Qb3 {[%clk 0:00:41]} 29. Qe1 {[%clk 0:00:27]}  Qb6 {[%clk 0:00:29]} 30. Qd1 {[%clk 0:00:26]}  Qb3 {[%clk 0:00:29]} 31. Qe1 {[%clk 0:00:21]}  Qb6 {[%clk 0:00:29]} 32. b3 {[%clk 0:00:10]}  axb3 {[%clk 0:00:28]} 33. Bd1 {[%clk 0:00:06]}  Bxa3 {[%clk 0:00:22]} 34. Rxb3 {[%clk 0:00:05]}  Bb4 {[%clk 0:00:22]} 35. Rdb2 {[%clk 0:00:01]}  Bxe1 {[%clk 0:00:20]} 36. Rxb6 {[%clk 0:00:02]}  Bc6 {[%clk 0:00:19]} 37. Nf4 {[%clk 0:00:02]}  Ba5 {[%clk 0:00:18]} 38. R6b5 {[%clk 0:00:02]}  Bc3 {[%clk 0:00:10]} 39. Rb1 {[%clk 0:00:01]}  Kd6 {[%clk 0:00:07]} 40. Rb6 {[%clk 0:00:01]}  Ba5 {[%clk 0:00:07]} 41. R6b2 {[%clk 0:00:02]}  b6 {[%clk 0:00:06]} 42. Be2 {[%clk 0:00:02]}  Bb7 {[%clk 0:00:05]} 43. Bb5 {[%clk 0:00:02]}  Rc2 {[%clk 0:00:05]} 44. Rxc2 {[%clk 0:00:02]}  Rxc2 {[%clk 0:00:05]} 45. Be8 {[%clk 0:00:03]}  f6 {[%clk 0:00:05]} 46. Bg6 {[%clk 0:00:03]}  Bc8 {[%clk 0:00:04]} 47. Bf7 {[%clk 0:00:03]}  Bb7 {[%clk 0:00:05]} 48. Be6 {[%clk 0:00:03]}  Bc6 {[%clk 0:00:05]} 49. Bxf5 {[%clk 0:00:04]}  b5 {[%clk 0:00:06]} 50. g4 {[%clk 0:00:03]}  b4 {[%clk 0:00:06]} 51. Be6 {[%clk 0:00:03]}  Rc3 {[%clk 0:00:03]} 52. h4 {[%clk 0:00:02]}  b3 {[%clk 0:00:03]} 53. Bf7 {[%clk 0:00:02]}  Bb4 {[%clk 0:00:03]} 54. Ne2 {[%clk 0:00:03]}  Rd3 {[%clk 0:00:03]} 55. Nc1 {[%clk 0:00:02]}  Rd1 {[%clk 0:00:02]} 56. Rxb3 {[%clk 0:00:03]}  Be1 {[%clk 0:00:02]} 57. Ne2 {[%clk 0:00:03]}  Rd2 {[%clk 0:00:02]} 58. Kf1 {[%clk 0:00:03]}  Ba4 {[%clk 0:00:02]} 59. Rb6+ {[%clk 0:00:03]}  Kc7 {[%clk 0:00:03]} 60. Ra6 {[%clk 0:00:03]}  Bb5 {[%clk 0:00:02]} 61. Ra7+ {[%clk 0:00:03]}  Kb6 {[%clk 0:00:02]} 62. Re7 {[%clk 0:00:04]}  Rxe2 {[%clk 0:00:03]} 63. Re6+ {[%clk 0:00:04]}  Ka5 {[%clk 0:00:03]} 64. Kg1 {[%clk 0:00:03]}  Bxf2+ {[%clk 0:00:03]} 65. Kh1 {[%clk 0:00:03]}  Bxe3 {[%clk 0:00:04]} 66. Rxf6 {[%clk 0:00:03]}  Rf2 {[%clk 0:00:04]} 67. Rxf2 {[%clk 0:00:03]}  Bxf2 {[%clk 0:00:04]} 68. Bxd5 {[%clk 0:00:04]}  e3 {[%clk 0:00:05]} 69. Bf3 {[%clk 0:00:04]}  e2 {[%clk 0:00:04]} 70. Bxe2 {[%clk 0:00:04]}  Bxe2 {[%clk 0:00:05]} 71. g5 {[%clk 0:00:05]}  h5 {[%clk 0:00:06]} 72. Kg2 {[%clk 0:00:05]}  Bxh4 {[%clk 0:00:06]} 73. g6 {[%clk 0:00:04]}  Bf6 {[%clk 0:00:06]} 0-1


[Site "https://www.chess.com"]

[Event "Titled Tuesday Blitz June 13 Late 2023"]
[White "Swiercz, Dariusz"]
[Black "Paravyan, David"]
[WhiteFideId "1126881"]
[BlackFideId "4194985"]
[WhiteElo "2620"]
[BlackElo "2563"]
[Result "1/2-1/2"]
[Round "6"]
[TimeControl "180+2"]
[Date "2023.06.13"]
[WhiteClock "0:00:08"]
[BlackClock "0:00:10"]
[Board "4"]

1. e4 {[%clk 0:02:50]}  e5 {[%clk 0:02:59]} 2. Nf3 {[%clk 0:02:50]}  Nf6 {[%clk 0:03:00]} 3. Nxe5 {[%clk 0:02:45]}  d6 {[%clk 0:03:00]} 4. Nf3 {[%clk 0:02:45]}  Nxe4 {[%clk 0:03:00]} 5. Bd3 {[%clk 0:02:44]}  d5 {[%clk 0:02:59]} 6. O-O {[%clk 0:02:44]}  Be7 {[%clk 0:03:00]} 7. Re1 {[%clk 0:02:45]}  O-O {[%clk 0:03:00]} 8. Nc3 {[%clk 0:02:44]}  Nf6 {[%clk 0:02:50]} 9. Bf1 {[%clk 0:02:39]}  h6 {[%clk 0:02:47]} 10. d4 {[%clk 0:02:39]}  Bf5 {[%clk 0:02:48]} 11. Bd3 {[%clk 0:02:36]}  Bxd3 {[%clk 0:02:48]} 12. Qxd3 {[%clk 0:02:37]}  Bd6 {[%clk 0:02:46]} 13. Nb5 {[%clk 0:02:34]}  Nc6 {[%clk 0:02:45]} 14. Nxd6 {[%clk 0:02:31]}  Qxd6 {[%clk 0:02:46]} 15. Ne5 {[%clk 0:02:14]}  Rfe8 {[%clk 0:02:20]} 16. Bf4 {[%clk 0:02:13]}  Nh5 {[%clk 0:02:18]} 17. Qf5 {[%clk 0:02:04]}  Qf6 {[%clk 0:01:18]} 18. Qxf6 {[%clk 0:01:46]}  gxf6 {[%clk 0:01:15]} 19. Nxc6 {[%clk 0:01:47]}  Nxf4 {[%clk 0:01:13]} 20. Ne7+ {[%clk 0:01:46]}  Kf8 {[%clk 0:01:10]} 21. Nf5 {[%clk 0:01:47]}  h5 {[%clk 0:01:08]} 22. g3 {[%clk 0:01:41]}  Ng6 {[%clk 0:00:52]} 23. Kg2 {[%clk 0:01:35]}  Re6 {[%clk 0:00:49]} 24. Re3 {[%clk 0:01:32]}  Ne7 {[%clk 0:00:37]} 25. Nxe7 {[%clk 0:01:26]}  Kxe7 {[%clk 0:00:22]} 26. Rae1 {[%clk 0:01:23]}  Rg8 {[%clk 0:00:22]} 27. c3 {[%clk 0:01:22]}  a5 {[%clk 0:00:21]} 28. Kf1 {[%clk 0:00:59]}  a4 {[%clk 0:00:20]} 29. a3 {[%clk 0:00:57]}  Ra8 {[%clk 0:00:17]} 30. Rf3 {[%clk 0:00:56]}  Ra6 {[%clk 0:00:07]} 31. Rfe3 {[%clk 0:00:49]}  Rb6 {[%clk 0:00:07]} 32. R1e2 {[%clk 0:00:50]}  f5 {[%clk 0:00:06]} 33. Ke1 {[%clk 0:00:45]}  Kf6 {[%clk 0:00:06]} 34. Kd1 {[%clk 0:00:44]}  Rxe3 {[%clk 0:00:07]} 35. fxe3 {[%clk 0:00:44]}  Kg5 {[%clk 0:00:07]} 36. Rf2 {[%clk 0:00:39]}  Kg4 {[%clk 0:00:05]} 37. Kc2 {[%clk 0:00:36]}  Re6 {[%clk 0:00:05]} 38. Kd3 {[%clk 0:00:36]}  Rb6 {[%clk 0:00:02]} 39. Rf4+ {[%clk 0:00:30]}  Kg5 {[%clk 0:00:01]} 40. Kc2 {[%clk 0:00:28]}  Kg6 {[%clk 0:00:01]} 41. Rf2 {[%clk 0:00:25]}  Kg5 {[%clk 0:00:02]} 42. h3 {[%clk 0:00:17]}  Kg6 {[%clk 0:00:02]} 43. Kd1 {[%clk 0:00:16]}  Re6 {[%clk 0:00:02]} 44. Ke2 {[%clk 0:00:16]}  Rb6 {[%clk 0:00:02]} 45. Kf3 {[%clk 0:00:16]}  Kg5 {[%clk 0:00:03]} 46. Rc2 {[%clk 0:00:15]}  Re6 {[%clk 0:00:03]} 47. c4 {[%clk 0:00:15]}  Rc6 {[%clk 0:00:03]} 48. c5 {[%clk 0:00:15]}  Re6 {[%clk 0:00:02]} 49. b4 {[%clk 0:00:11]}  axb3 {[%clk 0:00:02]} 50. Rb2 {[%clk 0:00:12]}  b6 {[%clk 0:00:02]} 51. Rxb3 {[%clk 0:00:10]}  bxc5 {[%clk 0:00:03]} 52. dxc5 {[%clk 0:00:11]}  Rc6 {[%clk 0:00:02]} 53. Rb5 {[%clk 0:00:10]}  Ra6 {[%clk 0:00:02]} 54. Rb7 {[%clk 0:00:09]}  Rxa3 {[%clk 0:00:03]} 55. Rxc7 {[%clk 0:00:08]}  d4 {[%clk 0:00:03]} 56. Re7 {[%clk 0:00:08]}  Rc3 {[%clk 0:00:03]} 57. c6 {[%clk 0:00:05]}  Kf6 {[%clk 0:00:03]} 58. Re8 {[%clk 0:00:04]}  d3 {[%clk 0:00:01]} 59. Rd8 {[%clk 0:00:03]}  Rxc6 {[%clk 0:00:02]} 60. Rxd3 {[%clk 0:00:03]}  Rc1 {[%clk 0:00:03]} 61. h4 {[%clk 0:00:03]}  Rf1+ {[%clk 0:00:03]} 62. Ke2 {[%clk 0:00:04]}  Ra1 {[%clk 0:00:04]} 63. Kf2 {[%clk 0:00:04]}  Rb1 {[%clk 0:00:04]} 64. Kf3 {[%clk 0:00:05]}  Rf1+ {[%clk 0:00:03]} 65. Kg2 {[%clk 0:00:05]}  Ra1 {[%clk 0:00:04]} 66. Rd6+ {[%clk 0:00:05]}  Kg7 {[%clk 0:00:04]} 67. Rd5 {[%clk 0:00:06]}  Kg6 {[%clk 0:00:04]} 68. Rd4 {[%clk 0:00:06]}  Rb1 {[%clk 0:00:04]} 69. Kf2 {[%clk 0:00:06]}  Ra1 {[%clk 0:00:05]} 70. Rd2 {[%clk 0:00:07]}  Rb1 {[%clk 0:00:05]} 71. Kf3 {[%clk 0:00:07]}  Rf1+ {[%clk 0:00:05]} 72. Rf2 {[%clk 0:00:08]}  Ra1 {[%clk 0:00:06]} 73. Rc2 {[%clk 0:00:08]}  Rf1+ {[%clk 0:00:06]} 74. Ke2 {[%clk 0:00:08]}  Ra1 {[%clk 0:00:06]} 75. Rc6+ {[%clk 0:00:08]}  f6 {[%clk 0:00:06]} 76. Rc8 {[%clk 0:00:08]}  Kg7 {[%clk 0:00:06]} 77. Kf3 {[%clk 0:00:08]}  Rf1+ {[%clk 0:00:06]} 78. Ke2 {[%clk 0:00:08]}  Ra1 {[%clk 0:00:07]} 79. Kf2 {[%clk 0:00:09]}  Rb1 {[%clk 0:00:07]} 80. Rd8 {[%clk 0:00:09]}  Ra1 {[%clk 0:00:08]} 81. Rd2 {[%clk 0:00:09]}  Kg6 {[%clk 0:00:08]} 82. Kf3 {[%clk 0:00:09]}  Rf1+ {[%clk 0:00:08]} 83. Rf2 {[%clk 0:00:10]}  Ra1 {[%clk 0:00:09]} 84. Kg2 {[%clk 0:00:10]}  Re1 {[%clk 0:00:09]} 85. Kf3 {[%clk 0:00:10]}  Ra1 {[%clk 0:00:09]} 86. Rd2 {[%clk 0:00:11]}  Rf1+ {[%clk 0:00:09]} 87. Ke2 {[%clk 0:00:11]}  Ra1 {[%clk 0:00:10]} 88. Kf2 {[%clk 0:00:11]}  Rb1 {[%clk 0:00:10]} 89. Ra2 {[%clk 0:00:11]}  Rc1 {[%clk 0:00:10]} 90. Ra4 {[%clk 0:00:09]}  Rb1 {[%clk 0:00:10]} 91. Kf3 {[%clk 0:00:09]}  Rf1+ {[%clk 0:00:10]} 92. Kg2 {[%clk 0:00:09]}  Rb1 {[%clk 0:00:11]} 93. Kf2 {[%clk 0:00:09]}  Rc1 {[%clk 0:00:11]} 94. Rb4 {[%clk 0:00:10]}  Ra1 {[%clk 0:00:11]} 95. Rb8 {[%clk 0:00:10]}  Kg7 {[%clk 0:00:11]} 96. Rb7+ {[%clk 0:00:10]}  Kg6 {[%clk 0:00:11]} 97. Rc7 {[%clk 0:00:11]}  Rb1 {[%clk 0:00:10]} 98. Ke2 {[%clk 0:00:11]}  Rh1 {[%clk 0:00:09]} 99. Rc8 {[%clk 0:00:11]}  Kg7 {[%clk 0:00:09]} 100. Rc5 {[%clk 0:00:10]}  Kg6 {[%clk 0:00:10]} 101. Kf2 {[%clk 0:00:06]}  Ra1 {[%clk 0:00:10]} 102. Rd5 {[%clk 0:00:07]}  Rb1 {[%clk 0:00:10]} 103. Ke2 {[%clk 0:00:07]}  Ra1 {[%clk 0:00:10]} 104. Rd1 {[%clk 0:00:07]}  Ra2+ {[%clk 0:00:06]} 105. Rd2 {[%clk 0:00:08]}  Ra1 {[%clk 0:00:07]} 106. Rc2 {[%clk 0:00:07]}  Rh1 {[%clk 0:00:07]} 107. Kf3 {[%clk 0:00:07]}  Rf1+ {[%clk 0:00:07]} 108. Kg2 {[%clk 0:00:06]}  Ra1 {[%clk 0:00:07]} 109. Kf2 {[%clk 0:00:07]}  Rb1 {[%clk 0:00:08]} 110. Rc8 {[%clk 0:00:06]}  Kg7 {[%clk 0:00:07]} 111. Rc7+ {[%clk 0:00:06]}  Kg6 {[%clk 0:00:08]} 112. Rc6 {[%clk 0:00:07]}  Kg7 {[%clk 0:00:08]} 113. Rc4 {[%clk 0:00:07]}  Kg6 {[%clk 0:00:08]} 114. Rf4 {[%clk 0:00:07]}  Ra1 {[%clk 0:00:09]} 115. e4 {[%clk 0:00:05]}  fxe4 {[%clk 0:00:07]} 116. Rxe4 {[%clk 0:00:06]}  Kf5 {[%clk 0:00:07]} 117. Rf4+ {[%clk 0:00:06]}  Ke5 {[%clk 0:00:08]} 118. Kg2 {[%clk 0:00:06]}  Ra2+ {[%clk 0:00:07]} 119. Kh3 {[%clk 0:00:06]}  f5 {[%clk 0:00:07]} 120. Rb4 {[%clk 0:00:05]}  Kf6 {[%clk 0:00:07]} 121. Rb6+ {[%clk 0:00:06]}  Kg7 {[%clk 0:00:08]} 122. Rc6 {[%clk 0:00:06]}  Rb2 {[%clk 0:00:07]} 123. Rc5 {[%clk 0:00:06]}  Kg6 {[%clk 0:00:08]} 124. Rc8 {[%clk 0:00:06]}  Kg7 {[%clk 0:00:08]} 125. Rc7+ {[%clk 0:00:06]}  Kg6 {[%clk 0:00:08]} 126. Rd7 {[%clk 0:00:07]}  Rb3 {[%clk 0:00:08]} 127. Rd4 {[%clk 0:00:05]}  Kf6 {[%clk 0:00:08]} 128. Kg2 {[%clk 0:00:05]}  Kg6 {[%clk 0:00:07]} 129. Rd8 {[%clk 0:00:04]}  Kg7 {[%clk 0:00:07]} 130. Rd6 {[%clk 0:00:05]}  Ra3 {[%clk 0:00:07]} 131. Re6 {[%clk 0:00:05]}  Rb3 {[%clk 0:00:07]} 132. Kf2 {[%clk 0:00:05]}  Ra3 {[%clk 0:00:07]} 133. Re3 {[%clk 0:00:06]}  Ra1 {[%clk 0:00:06]} 134. Kf3 {[%clk 0:00:06]}  Rf1+ {[%clk 0:00:07]} 135. Ke2 {[%clk 0:00:06]}  Ra1 {[%clk 0:00:07]} 136. Kf2 {[%clk 0:00:07]}  Kf6 {[%clk 0:00:08]} 137. Re8 {[%clk 0:00:06]}  Ra2+ {[%clk 0:00:08]} 138. Kf3 {[%clk 0:00:06]}  Ra3+ {[%clk 0:00:08]} 139. Re3 {[%clk 0:00:05]}  Ra1 {[%clk 0:00:08]} 140. Rb3 {[%clk 0:00:05]}  Rf1+ {[%clk 0:00:08]} 141. Ke2 {[%clk 0:00:06]}  Ra1 {[%clk 0:00:08]} 142. Rb8 {[%clk 0:00:05]}  Kg7 {[%clk 0:00:08]} 143. Rb6 {[%clk 0:00:05]}  Ra3 {[%clk 0:00:08]} 144. Kf2 {[%clk 0:00:06]}  Rc3 {[%clk 0:00:08]} 145. Kg2 {[%clk 0:00:06]}  Ra3 {[%clk 0:00:09]} 146. Rc6 {[%clk 0:00:06]}  Rb3 {[%clk 0:00:09]} 147. Rd6 {[%clk 0:00:07]}  Ra3 {[%clk 0:00:09]} 148. Rd5 {[%clk 0:00:07]}  Kg6 {[%clk 0:00:09]} 149. Rd8 {[%clk 0:00:07]}  Kg7 {[%clk 0:00:09]} 150. Rd7+ {[%clk 0:00:07]}  Kg6 {[%clk 0:00:09]} 151. Rd8 {[%clk 0:00:08]}  Kg7 {[%clk 0:00:09]} 152. Rd5 {[%clk 0:00:08]}  Kg6 {[%clk 0:00:09]} 153. Rd6+ {[%clk 0:00:08]}  Kg7 {[%clk 0:00:10]} 1/2-1/2


[Site "https://www.chess.com"]

[Event "Titled Tuesday Blitz June 13 Late 2023"]
[White "Sarana, Alexey"]
[Black "Demidov, Mikhail"]
[WhiteFideId "24133795"]
[BlackFideId "4197143"]
[WhiteElo "2714"]
[BlackElo "2500"]
[Result "1-0"]
[Round "6"]
[TimeControl "180+2"]
[Date "2023.06.13"]
[WhiteClock "0:00:11"]
[BlackClock "0:00:00"]
[Board "5"]

1. c4 {[%clk 0:03:00]}  g6 {[%clk 0:03:00]} 2. d4 {[%clk 0:02:59]}  Bg7 {[%clk 0:03:00]} 3. e4 {[%clk 0:03:00]}  d6 {[%clk 0:03:00]} 4. Nc3 {[%clk 0:02:54]}  e5 {[%clk 0:02:59]} 5. d5 {[%clk 0:02:53]}  a5 {[%clk 0:02:58]} 6. Bd3 {[%clk 0:02:54]}  Na6 {[%clk 0:02:58]} 7. Nge2 {[%clk 0:02:52]}  Nc5 {[%clk 0:02:47]} 8. Bc2 {[%clk 0:02:52]}  Nf6 {[%clk 0:02:34]} 9. f3 {[%clk 0:02:50]}  Nfd7 {[%clk 0:02:21]} 10. Be3 {[%clk 0:02:49]}  Bh6 {[%clk 0:02:18]} 11. Qd2 {[%clk 0:02:31]}  Bxe3 {[%clk 0:02:16]} 12. Qxe3 {[%clk 0:02:32]}  Nb6 {[%clk 0:02:01]} 13. b3 {[%clk 0:02:31]}  O-O {[%clk 0:01:39]} 14. Qh6 {[%clk 0:01:50]}  f5 {[%clk 0:01:32]} 15. exf5 {[%clk 0:01:42]}  Bxf5 {[%clk 0:01:30]} 16. Bxf5 {[%clk 0:01:41]}  gxf5 {[%clk 0:01:29]} 17. O-O {[%clk 0:01:19]}  Rf6 {[%clk 0:00:53]} 18. Qg5+ {[%clk 0:01:09]}  Kh8 {[%clk 0:00:53]} 19. f4 {[%clk 0:01:09]}  e4 {[%clk 0:00:45]} 20. Nd4 {[%clk 0:01:08]}  Qf8 {[%clk 0:00:44]} 21. Ncb5 {[%clk 0:00:56]}  Qf7 {[%clk 0:00:43]} 22. Rad1 {[%clk 0:00:29]}  Rg8 {[%clk 0:00:41]} 23. Qh4 {[%clk 0:00:29]}  Rfg6 {[%clk 0:00:25]} 24. Rd2 {[%clk 0:00:29]}  Qg7 {[%clk 0:00:17]} 25. Qh3 {[%clk 0:00:21]}  Nd3 {[%clk 0:00:05]} 26. Nxf5 {[%clk 0:00:18]}  Qf6 {[%clk 0:00:05]} 27. Re2 {[%clk 0:00:14]}  c6 {[%clk 0:00:02]} 28. dxc6 {[%clk 0:00:10]}  bxc6 {[%clk 0:00:00]} 29. Nbxd6 {[%clk 0:00:11]} 1-0


[Site "https://www.chess.com"]

[Event "Titled Tuesday Blitz June 13 Late 2023"]
[White "Makarian, Rudik"]
[Black "Kovalev, Vladislav"]
[WhiteFideId "44105681"]
[BlackFideId "13504398"]
[WhiteElo "2451"]
[BlackElo "2555"]
[Result "0-1"]
[Round "6"]
[TimeControl "180+2"]
[Date "2023.06.13"]
[WhiteClock "0:00:00"]
[BlackClock "0:01:39"]
[Board "7"]

1. d4 {[%clk 0:03:00]}  Nf6 {[%clk 0:03:00]} 2. c4 {[%clk 0:03:01]}  e6 {[%clk 0:03:00]} 3. Nf3 {[%clk 0:03:02]}  d5 {[%clk 0:03:01]} 4. Nc3 {[%clk 0:03:03]}  Be7 {[%clk 0:02:59]} 5. g3 {[%clk 0:03:01]}  O-O {[%clk 0:02:57]} 6. Bg2 {[%clk 0:03:02]}  dxc4 {[%clk 0:02:56]} 7. Ne5 {[%clk 0:03:02]}  c5 {[%clk 0:02:51]} 8. dxc5 {[%clk 0:03:03]}  Qxd1+ {[%clk 0:02:49]} 9. Nxd1 {[%clk 0:03:04]}  Bxc5 {[%clk 0:02:49]} 10. O-O {[%clk 0:03:05]}  Nc6 {[%clk 0:02:19]} 11. Bxc6 {[%clk 0:03:04]}  bxc6 {[%clk 0:02:20]} 12. Be3 {[%clk 0:03:05]}  Bd6 {[%clk 0:01:38]} 13. Nxc4 {[%clk 0:00:00]}  Be7 {[%clk 0:01:39]} 0-1


[Site "https://www.chess.com"]